bitfinex/quotes_SOLUSD_20250708
["timestamp","ask_amount","ask_price","bid_price","bid_amount"]
[1751962695389,1.1003776,150.38,150.37,113.56140016]
[1751962695594,1.1003776,150.38,150.37,125.30945203]
[1751962697315,1.1003776,150.38,150.37,120.21166284]
[1751962697502,1.1003776,150.38,150.37,125.30945203]
[1751962701717,1.1003776,150.38,150.37,84.85918935]
[1751962702021,1.1003776,150.38,150.37,118.65918935]
[1751962702613,1.1003776,150.38,150.37,125.30945203]
[1751962706802,0.06,150.43,150.38,18.64964886]
[1751962707004,0.06,150.43,150.42,5.09778919]
[1751962707202,0.06,150.43,150.42,100.00954049]
[1751962710515,0.06,150.43,150.42,106.65759261]
[1751962713426,0.06,150.43,150.42,100.00954049]
[1751962714631,0.06,150.43,150.42,94.9117513]
[1751962715208,0.06,150.43,150.42,61.1117513]
[1751962715414,0.06,150.43,150.42,94.9117513]
[1751962720240,5.15778919,150.43,150.42,94.9117513]
[1751962720539,5.15778919,150.43,150.42,61.1117513]
[1751962721040,5.15778919,150.43,150.41,33.8]
[1751962721230,5.09778919,150.42,150.41,33.8]
[1751962721437,11.74610398,150.42,150.4,33.8]
[1751962721634,5.09778919,150.41,150.4,33.8]
[1751962724846,5.09778919,150.41,150.38,61.1417513]
[1751962725024,5.09778919,150.4,150.38,61.1417513]
[1751962725216,5.09778919,150.4,150.39,33.8]
[1751962725540,5.09778919,150.4,150.38,61.1417513]
[1751962725711,5.09778919,150.39,150.38,61.1417513]
[1751962726036,5.09778919,150.39,150.38,94.9417513]
[1751962726227,5.09778919,150.39,150.38,61.1417513]
[1751962727143,11.74716747,150.39,150.38,61.1417513]
[1751962727718,11.74716747,150.39,150.38,0.03]
[1751962730021,5.09778919,150.39,150.38,0.03]
[1751962731734,9.28058328,150.41,150.38,0.03]
[1751962732035,32.64839885,150.42,150.38,0.03]
[1751962732036,5.09778919,150.4,150.38,0.03]
[1751962732244,5.09778919,150.42,150.38,38.92778919]
[1751962732541,5.09778919,150.42,150.38,100.03954049]
[1751962737028,5.09778919,150.42,150.38,106.68912875]
[1751962738436,5.09778919,150.42,150.38,100.03954049]
[1751962738743,15.9882912,150.43,150.38,100.03954049]
[1751962738957,5.09778919,150.42,150.38,100.03954049]
[1751962739848,5.09778919,150.41,150.38,94.9417513]
[1751962741034,5.09778919,150.4,150.38,94.9417513]
[1751962742866,5.09778919,150.41,150.38,94.9417513]
[1751962743564,5.15778919,150.42,150.38,94.9417513]
[1751962743730,5.15778919,150.42,150.38,61.1417513]
[1751962744169,5.15778919,150.42,150.39,33.8]
[1751962745558,11.80598759,150.42,150.39,33.8]
[1751962745769,5.09778919,150.41,150.39,33.8]
[1751962747452,5.09778919,150.4,150.38,61.1417513]
[1751962747638,5.09778919,150.39,150.38,61.1417513]
[1751962748843,11.74716747,150.39,150.38,61.1417513]
[1751962749042,11.74716747,150.39,150.38,0.03]
[1751962750829,15.96852409,150.39,150.38,0.03]
[1751962751034,21.06631328,150.39,150.38,0.03]
[1751962752574,9.31914581,150.39,150.38,0.03]
[1751962752736,5.09778919,150.39,150.38,0.03]
[1751962754352,11.74716747,150.39,150.38,0.03]
[1751962754543,21.06631328,150.39,150.38,0.03]
[1751962758963,37.74716747,150.39,150.38,0.03]
[1751962759143,50.15750719,150.39,150.38,0.03]
[1751962760363,37.74716747,150.39,150.38,0.03]
[1751962761953,37.74716747,150.39,150.38,0.03]
[1751962763463,37.80716747,150.39,150.38,0.03]
[1751962765065,30.45681633,150.39,150.38,1e-08]
[1751962765249,49.21725487,150.39,150.38,1e-08]
[1751962766466,30.45681633,150.39,150.38,1e-08]
[1751962767672,38.17499815,150.39,150.38,1e-08]
[1751962768361,56.8018043,150.39,150.38,1e-08]
[1751962768553,26.0,150.35,150.29,62.7740513]
[1751962768744,5.09778919,150.32,150.29,1.6623]
[1751962768944,5.09778919,150.31,150.29,1.6623]
[1751962770747,5.09778919,150.31,150.28,0.03]
[1751962773266,5.09778919,150.3,150.28,0.03]
[1751962774447,26.0,150.33,150.28,0.03]
[1751962774650,5.09778919,150.32,150.28,5.12778919]
[1751962775078,5.09778919,150.32,150.28,0.03]
[1751962775663,5.09778919,150.31,150.28,0.03]
[1751962775975,5.09778919,150.3,150.28,0.03]
[1751962776162,32.65207473,150.33,150.28,0.03]
[1751962776356,5.09778919,150.3,150.28,0.03]
[1751962777379,5.09778919,150.29,150.28,0.03]
[1751962779488,11.75159183,150.29,150.28,0.03]
[1751962780165,37.75159183,150.29,150.28,0.03]
[1751962787065,9.30341045,150.32,150.28,0.03]
[1751962787281,5.09778919,150.29,150.28,0.03]
[1751962791995,32.65309556,150.31,150.28,0.03]
[1751962791996,5.09778919,150.3,150.28,0.03]
[1751962793697,26.0,150.31,150.28,0.03]
[1751962793897,31.09778919,150.31,150.28,0.03]
[1751962795402,37.75073283,150.31,150.28,0.03]
[1751962795699,5.09778919,150.3,150.28,0.03]
[1751962797996,9.30341045,150.33,150.28,0.03]
[1751962798203,5.09778919,150.32,150.28,0.03]
[1751962798586,5.09778919,150.31,150.28,0.03]
[1751962799304,5.09778919,150.32,150.28,5.12778919]
[1751962800711,5.09778919,150.32,150.28,0.03]
[1751962800894,5.09778919,150.32,150.28,5.12778919]
[1751962801902,5.09778919,150.31,150.28,0.03]
[1751962803807,41.95551786,150.33,150.28,0.03]
[1751962803997,5.09778919,150.31,150.28,0.03]
[1751962807397,41.95551786,150.33,150.28,0.03]
[1751962807599,35.30341045,150.33,150.29,5.09778919]
[1751962807792,26.0,150.33,150.29,5.09778919]
[1751962807993,14.40119964,150.34,150.29,5.09778919]
[1751962808394,5.09778919,150.33,150.28,0.03]
[1751962808598,5.09778919,150.33,150.28,5.12778919]
[1751962809296,5.09778919,150.33,150.28,66.23954049]
[1751962810422,5.09778919,150.33,150.29,6.65380264]
[1751962810423,14.40119964,150.33,150.29,6.65380264]
[1751962810612,5.09778919,150.33,150.29,6.65380264]
[1751962812708,15.95502346,150.34,150.29,6.65380264]
[1751962812909,14.40119964,150.33,150.29,6.65380264]
[1751962814124,14.40119964,150.33,150.28,72.89360177]
[1751962814425,5.09778919,150.32,150.28,61.1417513]
[1751962814607,5.09778919,150.31,150.28,61.1417513]
[1751962814815,3.2687498,150.31,150.28,61.1417513]
[1751962816828,5.10754493,150.31,150.28,61.1417513]
[1751962817329,5.10754493,150.3,150.28,61.1417513]
[1751962817718,15.95549047,150.33,150.28,61.1417513]
[1751962817719,5.10754493,150.29,150.28,61.1417513]
[1751962821035,5.10754493,150.29,150.28,0.03]
[1751962824616,11.76134757,150.29,150.28,0.03]
[1751962826715,21.06475802,150.29,150.28,0.03]
[1751962836853,19.22739298,150.29,150.28,0.03]
[1751962839243,19.26454662,150.29,150.28,0.03]
[1751962840105,9.34056409,150.29,150.28,0.03]
[1751962840286,9.34056409,150.31,150.28,0.03]
[1751962840577,3.27017989,150.3,150.28,0.03]
[1751962841157,9.92354334,150.3,150.28,0.03]
[1751962842771,26.0,150.29,150.28,0.03]
[1751962847465,29.27017989,150.29,150.28,0.03]
[1751962850462,35.92398253,150.29,150.28,0.03]
[1751962851382,29.27017989,150.29,150.28,0.03]
[1751962852781,35.92398253,150.29,150.28,0.03]
[1751962853279,45.26361796,150.29,150.28,0.03]
[1751962855365,38.60981532,150.29,150.28,0.03]
[1751962856766,29.27017989,150.29,150.28,0.03]
[1751962858480,38.60981532,150.29,150.28,0.03]
[1751962861466,35.33963543,150.29,150.28,0.03]
[1751962861786,45.26361796,150.29,150.28,0.03]
[1751962862086,35.92398253,150.29,150.28,0.03]
[1751962862300,29.27017989,150.29,150.28,0.03]
[1751962864979,26.0,150.29,150.28,0.03]
[1751962865183,29.27017989,150.29,150.28,0.03]
[1751962867189,35.92398253,150.29,150.28,0.03]
[1751962868275,26.0,150.29,150.28,0.03]
[1751962869292,12.41547736,150.3,150.28,0.03]
[1751962869909,35.35780269,150.29,150.28,0.03]
[1751962872589,9.35780269,150.29,150.28,0.03]
[1751962872824,42.84364317,150.29,150.28,0.03]
[1751962873051,33.48584048,150.29,150.28,0.03]
[1751962873218,42.84322496,150.29,150.28,0.03]
[1751962873736,33.48584048,150.29,150.28,0.03]
[1751962876462,42.84407362,150.29,150.28,0.03]
[1751962878645,16.84407362,150.29,150.28,0.03]
[1751962878847,7.48584048,150.29,150.28,4.84867989]
[1751962879030,7.48584048,150.29,150.28,38.62867989]
[1751962880152,7.3855881,150.29,150.28,99.74043119]
[1751962880863,9.35823314,150.33,150.28,106.39467659]
[1751962881044,16.01060457,150.33,150.28,96.4702513]
[1751962881358,9.35823314,150.32,150.28,99.74043119]
[1751962882262,16.01080863,150.32,150.28,99.74043119]
[1751962883839,9.35823314,150.32,150.28,99.74043119]
[1751962885366,9.35823314,150.32,150.3,3.27017989]
[1751962885568,38.41547736,150.35,150.3,37.03017989]
[1751962885569,9.35823314,150.33,150.3,37.03017989]
[1751962886067,9.35823314,150.33,150.3,43.68350173]
[1751962886869,9.35823314,150.33,150.3,37.03017989]
[1751962887261,12.62841303,150.34,150.3,37.03017989]
[1751962888472,9.35823314,150.34,150.3,37.03017989]
[1751962888656,12.62841303,150.34,150.3,37.03017989]
[1751962889050,12.62841303,150.34,150.3,98.14193119]
[1751962891257,3.27017989,150.34,150.3,98.14193119]
[1751962892175,7.4657621,150.33,150.3,98.14193119]
[1751962892354,7.4657621,150.32,150.3,98.14193119]
[1751962892554,7.4657621,150.31,150.3,98.14193119]
[1751962892874,7.4657621,150.33,150.3,98.14193119]
[1751962893052,7.4657621,150.32,150.3,98.14193119]
[1751962893373,7.4657621,150.31,150.3,98.14193119]
[1751962893743,7.4657621,150.33,150.3,98.14193119]
[1751962893943,7.4657621,150.32,150.3,101.524933]
[1751962894182,38.62841303,150.35,150.31,3.27017989]
[1751962894353,7.46199389,150.34,150.32,33.76]
[1751962894677,7.46199389,150.33,150.32,33.76]
[1751962896678,7.46032462,150.33,150.32,33.76]
[1751962901387,17.3825367,150.33,150.31,94.8517513]
[1751962901558,7.46032462,150.32,150.31,94.8517513]
[1751962902781,14.11279934,150.32,150.31,94.8517513]
[1751962903479,14.11279934,150.32,150.31,61.1117513]
[1751962903858,14.11279934,150.32,150.3,33.74]
[1751962904061,7.46032462,150.31,150.3,33.74]
[1751962904870,7.46032462,150.31,150.28,65.96043119]
[1751962905186,7.46032462,150.3,150.29,33.74]
[1751962907481,7.46032462,150.3,150.29,37.01017989]
[1751962907861,7.46032462,150.31,150.29,37.01017989]
[1751962908064,7.46032462,150.3,150.29,37.01017989]
[1751962908263,7.46032462,150.31,150.29,37.01017989]
[1751962908467,7.46032462,150.3,150.29,37.01017989]
[1751962908672,7.46032462,150.31,150.29,37.01017989]
[1751962908873,7.46032462,150.3,150.29,37.01017989]
[1751962909283,7.46032462,150.31,150.29,37.01017989]
[1751962909500,7.46032462,150.3,150.29,37.01017989]
[1751962909699,7.46032462,150.31,150.29,37.01017989]
[1751962909865,7.46032462,150.3,150.29,98.12193119]
[1751962910281,7.46032462,150.31,150.29,98.12193119]
[1751962910486,7.46032462,150.3,150.29,98.12193119]
[1751962910867,7.46032462,150.31,150.29,98.12193119]
[1751962911075,7.46032462,150.3,150.29,98.12193119]
[1751962911392,7.46032462,150.3,150.29,94.8517513]
[1751962914690,14.11368456,150.3,150.29,94.8517513]
[1751962914989,7.46032462,150.3,150.29,61.1117513]
[1751962915169,7.46032462,150.3,150.29,64.38193119]
[1751962915776,7.46032462,150.33,150.29,64.38193119]
[1751962915977,7.46032462,150.32,150.3,37.01017989]
[1751962916182,19.24745664,150.34,150.3,37.01017989]
[1751962916183,7.46032462,150.31,150.3,37.01017989]
[1751962917093,7.46032462,150.31,150.3,33.74]
[1751962918591,7.46032462,150.31,150.3,37.01017989]
[1751962919874,7.46032462,150.31,150.3,43.66353983]
[1751962921683,7.46032462,150.31,150.3,104.77529113]
[1751962924072,9.32540577,150.35,150.3,110.88069113]
[1751962924277,7.47843903,150.34,150.3,107.61051124]
[1751962924490,7.47843903,150.33,150.3,107.61051124]
[1751962924697,7.47843903,150.32,150.3,107.61051124]
[1751962924977,9.32540577,150.36,150.3,107.61051124]
[1751962925177,7.47686381,150.35,150.3,107.61051124]
[1751962925380,7.47686381,150.34,150.33,3.27017989]
[1751962925680,7.47686381,150.34,150.33,37.01017989]
[1751962926693,7.47686381,150.34,150.33,33.74]
[1751962927394,7.47686381,150.34,150.32,33.74]
[1751962927691,10.7470437,150.33,150.31,33.74]
[1751962927897,7.47686381,150.32,150.3,94.8517513]
[1751962928212,7.47686381,150.31,150.3,61.1117513]
[1751962928993,26.72536677,150.31,150.3,61.1117513]
[1751962930307,16.80226958,150.31,150.3,94.8517513]
[1751962930511,7.47686381,150.31,150.3,94.8517513]
[1751962932094,7.47686381,150.31,150.3,98.12193119]
[1751962932806,7.47686381,150.31,150.3,99.9571306]
[1751962934595,7.47686381,150.31,150.3,94.8517513]
[1751962938899,7.47686381,150.31,150.3,61.1117513]
[1751962939311,16.80226958,150.31,150.3,61.1117513]
[1751962939494,7.47686381,150.31,150.3,61.1117513]
[1751962939697,7.53686381,150.31,150.3,61.1117513]
[1751962948413,7.53686381,150.31,150.3,94.8317513]
[1751962950408,7.53686381,150.31,150.3,61.1117513]
[1751962950709,7.53686381,150.31,150.3,94.8317513]
[1751962952212,19.29516041,150.31,150.3,61.1117513]
[1751962952385,28.62056618,150.31,150.3,61.1117513]
[1751962954714,19.29516041,150.31,150.3,61.1117513]
[1751962954904,17.45877778,150.31,150.3,61.1117513]
[1751962955586,17.45877778,150.31,150.28,0.03]
[1751962955786,12.61236314,150.29,150.28,0.03]
[1751962955985,16.82023028,150.29,150.28,0.03]
[1751962957119,10.74586048,150.29,150.28,0.03]
[1751962957291,19.89234117,150.29,150.25,61.1117513]
[1751962957492,19.89234117,150.29,150.24,94.8617513]
[1751962957493,9.33812323,150.27,150.24,94.8617513]
[1751962957814,10.74586048,150.26,150.24,94.8617513]
[1751962958118,7.47069059,150.25,150.24,94.8617513]
[1751962958409,7.47069059,150.25,150.24,0.03]
[1751962959887,17.3952613,150.25,150.24,0.03]
[1751962960793,7.47069059,150.25,150.24,0.03]
[1751962960994,12.58272259,150.25,150.24,0.03]
[1751962961931,19.23829663,150.25,150.24,0.03]
[1751962964201,28.57665987,150.25,150.24,0.03]
[1751962964401,19.23829663,150.25,150.24,0.03]
[1751962966608,37.88794549,150.25,150.24,0.03]
[1751962966846,47.22630873,150.25,150.24,0.03]
[1751962967424,37.88794549,150.25,150.24,0.03]
[1751962970004,86.07834073,150.25,150.24,0.03]
[1751962970822,91.40148436,150.25,150.24,0.03]
[1751962971230,86.07834073,150.25,150.24,0.03]
[1751962971441,75.85427673,150.25,150.24,0.03]
[1751962971615,71.62794549,150.25,150.24,0.03]
[1751962972107,37.88794549,150.25,150.24,0.03]
[1751962972317,71.62794549,150.25,150.24,0.03]
[1751962972841,80.96630873,150.25,150.24,0.03]
[1751962973009,71.62794549,150.25,150.24,0.03]
[1751962973414,37.88794549,150.25,150.24,0.03]
[1751962973732,71.62794549,150.25,150.24,0.03]
[1751962975717,71.58547373,150.25,150.24,0.03]
[1751962976533,37.84547373,150.25,150.24,0.03]
[1751962976735,71.58547373,150.25,150.24,0.03]
[1751962977624,37.84547373,150.25,150.24,0.03]
[1751962979408,71.58547373,150.25,150.24,0.03]
[1751962980808,69.74596661,150.25,150.24,0.03]
[1751962981131,36.00596661,150.25,150.24,0.03]
[1751962981325,69.74596661,150.25,150.24,0.03]
[1751962981519,69.74494353,150.25,150.24,0.03]
[1751962991469,79.02893822,150.25,150.24,0.03]
[1751962991747,79.05647903,150.25,150.24,0.03]
[1751962992958,79.06323524,150.25,150.24,0.03]
[1751962994130,41.18243887,150.25,150.24,0.03]
[1751962994325,33.44243887,150.25,150.24,0.03]
[1751962994545,36.71496375,150.25,150.24,0.03]
[1751962994748,7.44243887,150.25,150.24,0.03]
[1751962995041,3.33252488,150.28,150.24,3.30252488]
[1751962995251,0.06,150.28,150.26,3.27252488]
[1751962995454,0.06,150.28,150.27,3.27252488]
[1751962995655,7.50701684,150.28,150.27,3.27252488]
[1751962995832,0.06,150.28,150.27,3.27252488]
[1751962997452,7.50701684,150.28,150.26,3.27252488]
[1751962997631,7.45289595,150.27,150.26,3.27252488]
[1751962998033,0.06,150.28,150.26,3.27252488]
[1751962998538,0.06,150.28,150.26,64.38427618]
[1751962998951,0.06,150.28,150.26,66.21940063]
[1751963003058,0.06,150.28,150.27,5.10764933]
[1751963003245,7.51172753,150.28,150.27,5.10764933]
[1751963003654,0.06,150.28,150.27,5.10764933]
[1751963005438,0.06,150.28,150.27,5.13764933]
[1751963007571,0.06,150.28,150.27,61.1417513]
[1751963024783,3.32891444,150.28,150.27,0.03]
[1751963024968,10.76922969,150.28,150.27,0.03]
[1751963025887,17.42347509,150.28,150.27,0.03]
[1751963032094,26.72127063,150.28,150.27,0.03]
[1751963033460,36.07312395,150.28,150.27,0.03]
[1751963034171,52.70873747,150.28,150.24,0.03]
[1751963034372,3.26891444,150.25,150.24,0.03]
[1751963034580,10.70922969,150.25,150.24,0.03]
[1751963035385,17.36480373,150.25,150.24,0.03]
[1751963036306,10.70922969,150.25,150.24,0.03]
[1751963037506,7.44031525,150.25,150.24,3.29891444]
[1751963037672,0.06,150.28,150.24,3.29891444]
[1751963037868,7.46141588,150.27,150.24,3.29891444]
[1751963038064,7.46141588,150.26,150.24,9.95491611]
[1751963038272,0.06,150.28,150.25,3.26891444]
[1751963038478,7.46461696,150.27,150.25,3.26891444]
[1751963038688,7.46461696,150.26,150.25,3.26891444]
[1751963039402,7.46461696,150.27,150.24,6.68600167]
[1751963039702,7.46461696,150.26,150.25,3.26891444]
[1751963040596,7.46461696,150.27,150.25,3.26891444]
[1751963040800,7.46461696,150.26,150.25,5.10841726]
[1751963041201,7.46461696,150.27,150.25,5.10841726]
[1751963041391,7.46461696,150.26,150.24,6.68600167]
[1751963041596,0.06,150.28,150.25,5.10841726]
[1751963041798,7.46759555,150.27,150.26,5.10841726]
[1751963042679,7.46759555,150.27,150.26,11.76354836]
[1751963042879,0.06,150.28,150.26,72.87529966]
[1751963043121,7.52759555,150.28,150.26,72.87529966]
[1751963043288,7.46759555,150.27,150.26,99.92016856]
[1751963043606,0.06,150.28,150.26,99.92016856]
[1751963043810,7.52759555,150.28,150.26,99.92016856]
[1751963043986,7.46759555,150.27,150.26,99.92016856]
[1751963044382,0.06,150.28,150.26,99.92016856]
[1751963044706,7.52759555,150.28,150.26,99.92016856]
[1751963044893,7.46759555,150.27,150.26,99.92016856]
[1751963045308,0.06,150.28,150.26,99.92016856]
[1751963045607,7.46759555,150.27,150.26,99.92016856]
[1751963049903,7.52759555,150.27,150.26,99.92016856]
[1751963051111,7.52759555,150.27,150.26,106.57529966]
[1751963051299,7.52759555,150.27,150.26,99.92016856]
[1751963052182,0.06,150.27,150.26,99.92016856]
[1751963052387,7.52759555,150.27,150.26,99.92016856]
[1751963055311,7.52759555,150.27,150.26,106.57529966]
[1751963055511,0.06,150.27,150.26,106.57529966]
[1751963060795,0.06,150.27,150.26,104.73557242]
[1751963063804,0.06,150.27,150.26,101.4668824]
[1751963064101,0.06,150.27,150.26,104.73557242]
[1751963064823,7.52404719,150.27,150.26,101.4668824]
[1751963065024,0.06,150.27,150.26,104.73557242]
[1751963065520,7.52404719,150.27,150.26,104.73557242]
[1751963065718,0.06,150.27,150.26,104.73557242]
[1751963071809,0.06,150.27,150.26,101.4668824]
[1751963072405,0.06,150.27,150.26,104.73557242]
[1751963073609,0.06,150.27,150.26,101.4668824]
[1751963073809,0.06,150.27,150.26,104.73557242]
[1751963077315,7.52686203,150.27,150.26,104.73557242]
[1751963078036,7.52686203,150.27,150.26,94.8117513]
[1751963079812,0.06,150.27,150.26,101.4668824]
[1751963080135,7.53538781,150.27,150.26,104.73557242]
[1751963089050,0.06,150.27,150.26,104.73557242]
[1751963102164,0.06,150.28,150.27,61.0517513]
[1751963102343,0.06,150.28,150.27,91.2641784]
[1751963102551,1e-08,150.28,150.27,97.5884784]
[1751963103134,1e-08,150.28,150.27,123.5884784]
[1751963108154,0.06,150.31,150.3,61.05175129]
[1751963108476,0.06,150.31,150.3,97.98044131]
[1751963109257,0.06,150.31,150.3,104.63380125]
[1751963109974,0.06,150.31,150.3,94.71175129]
[1751963110257,3.32869002,150.31,150.3,94.71175129]
[1751963110464,10.78756321,150.31,150.3,94.71175129]
[1751963111664,0.06,150.31,150.3,94.71175129]
[1751963114477,7.5197439,150.31,150.3,94.71175129]
[1751963115956,10.78843392,150.31,150.3,94.71175129]
[1751963117056,3.32869002,150.31,150.3,94.71175129]
[1751963117258,10.78843392,150.31,150.3,94.71175129]
[1751963117959,3.32869002,150.31,150.3,94.71175129]
[1751963118165,10.78843392,150.31,150.3,94.71175129]
[1751963118559,3.32869002,150.31,150.3,94.71175129]
[1751963118759,10.78843392,150.31,150.3,94.71175129]
[1751963118965,3.32869002,150.31,150.3,94.71175129]
[1751963119155,10.78843392,150.31,150.3,94.71175129]
[1751963119362,3.32869002,150.31,150.3,94.71175129]
[1751963119557,10.78843392,150.31,150.3,94.71175129]
[1751963119775,3.32869002,150.31,150.3,94.71175129]
[1751963119979,10.78843392,150.31,150.3,94.71175129]
[1751963120879,3.32869002,150.31,150.3,94.71175129]
[1751963121063,7.5197439,150.31,150.3,94.71175129]
[1751963122482,10.78843392,150.31,150.3,94.71175129]
[1751963124163,7.5197439,150.31,150.3,94.71175129]
[1751963124366,10.78843392,150.31,150.3,94.71175129]
[1751963127484,7.5197439,150.31,150.3,94.71175129]
[1751963127673,10.78843392,150.31,150.3,94.69175129]
[1751963131875,7.5197439,150.31,150.3,94.69175129]
[1751963137684,0.06,150.31,150.3,104.61380125]
[1751963138274,0.06,150.31,150.3,101.34511123]
[1751963144394,0.06,150.31,150.3,94.69175129]
[1751963147078,0.06,150.31,150.3,101.34511123]
[1751963147274,0.06,150.31,150.3,61.05175129]
[1751963147476,7.53212017,150.31,150.3,94.69175129]
[1751963160527,0.06,150.31,150.3,123.26345011]
[1751963161423,7.53892871,150.31,150.3,94.69175129]
[1751963161804,7.53892871,150.31,150.3,101.34511123]
[1751963163016,0.06,150.31,150.3,101.34511123]
[1751963164230,3.26869002,150.34,150.31,67.64464557]
[1751963164402,9.32163823,150.35,150.32,33.62]
[1751963164403,7.47856969,150.33,150.32,33.62]
[1751963164803,3.26869002,150.36,150.32,33.62]
[1751963165124,10.74581952,150.35,150.32,94.61175129]
[1751963165324,7.4771295,150.34,150.32,94.61175129]
[1751963165514,3.26869002,150.36,150.32,94.61175129]
[1751963165715,7.47524223,150.35,150.32,94.61175129]
[1751963165922,7.47524223,150.34,150.32,94.61175129]
[1751963166112,7.47541585,150.33,150.32,94.61175129]
[1751963166304,7.47541585,150.33,150.32,101.26422601]
[1751963167226,7.47541585,150.33,150.32,94.61175129]
[1751963167532,10.74410587,150.33,150.32,94.61175129]
[1751963167825,7.47541585,150.33,150.32,101.26422601]
[1751963168025,10.74410587,150.33,150.32,60.99175129]
[1751963168204,10.74410587,150.33,150.32,94.61175129]
[1751963168398,10.74410587,150.33,150.32,60.99175129]
[1751963168602,17.39613806,150.33,150.32,94.61175129]
[1751963168828,26.71777629,150.33,150.32,94.61175129]
[1751963169027,16.79705408,150.33,150.32,94.61175129]
[1751963169225,20.0657441,150.33,150.32,94.61175129]
[1751963169431,26.71777629,150.33,150.32,94.61175129]
[1751963170121,10.74410587,150.33,150.32,94.61175129]
[1751963170427,7.47541585,150.33,150.32,94.61175129]
[1751963170629,10.74410587,150.33,150.32,94.61175129]
[1751963176223,10.74410587,150.33,150.32,60.99175129]
[1751963184140,7.47541585,150.33,150.32,60.99175129]
[1751963184346,10.74410587,150.33,150.32,60.99175129]
[1751963185441,7.47541585,150.33,150.32,67.64422601]
[1751963193645,10.74410587,150.33,150.32,60.99175129]
[1751963193861,10.74410587,150.33,150.31,0.03]
[1751963194029,10.74410587,150.32,150.31,33.63]
[1751963195165,10.74410587,150.32,150.25,0.03]
[1751963195166,46.20854886,150.26,150.25,0.03]
[1751963195361,46.20854886,150.26,150.24,0.03]
[1751963195363,44.64964886,150.25,150.24,0.03]
[1751963195523,93.83351674,150.25,150.24,1e-08]
[1751963195856,26.0,150.21,150.18,0.2]
[1751963196037,16.80828802,150.2,150.18,0.2]
[1751963196214,7.47541585,150.19,150.18,0.2]
[1751963196421,3.26869002,150.19,150.18,0.2]
[1751963196743,3.26869002,150.2,150.18,33.94]
[1751963197047,5.11387315,150.19,150.18,33.94]
[1751963198241,5.11387315,150.19,150.18,0.2]
[1751963199539,7.44053017,150.22,150.18,0.2]
[1751963199728,5.11387315,150.19,150.18,0.2]
[1751963199931,5.11387315,150.19,150.18,6.85867625]
[1751963201629,5.11387315,150.2,150.18,6.85867625]
[1751963205849,5.11387315,150.2,150.18,67.85042754]
[1751963208738,5.11387315,150.19,150.18,67.85042754]
[1751963210882,5.11387315,150.19,150.18,0.2]
[1751963213562,7.4090187,150.2,150.18,0.2]
[1751963213736,5.11387315,150.19,150.18,0.2]
[1751963215837,12.51638018,150.19,150.18,0.2]
[1751963216571,5.11387315,150.19,150.18,0.2]
[1751963217069,30.42175491,150.19,150.18,0.2]
[1751963217278,77.16837949,150.19,150.18,0.2]
[1751963217644,51.16837949,150.19,150.18,0.2]
[1751963219348,46.05450634,150.19,150.18,0.2]
[1751963220269,80.21450634,150.19,150.18,0.2]
[1751963221774,12.50445065,150.19,150.18,0.2]
[1751963221964,38.50445065,150.19,150.18,0.2]
[1751963223658,12.50445065,150.19,150.18,0.2]
[1751963223857,5.11387315,150.19,150.18,0.2]
[1751963231772,7.45923502,150.2,150.18,0.2]
[1751963231984,5.11387315,150.19,150.18,0.2]
[1751963232593,5.11387315,150.19,150.18,6.85867625]
[1751963233399,5.11387315,150.19,150.18,0.2]
[1751963234583,12.52125903,150.19,150.18,0.2]
[1751963235395,12.52125903,150.19,150.18,61.19175129]
[1751963238398,21.75948091,150.19,150.18,61.19175129]
[1751963239391,12.52125903,150.19,150.18,42.4401842]
[1751963241211,7.40738588,150.19,150.18,42.4401842]
[1751963246924,7.40738588,150.19,150.18,49.09886045]
[1751963248015,7.40738588,150.19,150.18,83.09886045]
[1751963248524,7.40738588,150.19,150.18,88.2127336]
[1751963248696,7.40738588,150.19,150.18,94.4243336]
[1751963248896,0.06,150.2,150.18,94.4243336]
[1751963249127,0.06,150.2,150.19,5.11387315]
[1751963249537,7.52988744,150.2,150.18,89.31046045]
[1751963249700,0.06,150.2,150.18,94.4243336]
[1751963250510,0.06,150.2,150.18,89.31046045]
[1751963250812,0.06,150.2,150.19,5.11387315]
[1751963251020,7.52897553,150.2,150.19,5.11387315]
[1751963252109,7.52897553,150.2,150.18,94.4243336]
[1751963252300,0.06,150.2,150.18,94.4243336]